fUST/lending_fUST_20250511
["ID","MTS","AMOUNT","RATE_DAILY","PERIOD"]
[360620469,1746906651147,-400.0,8.492e-05,2]
[360620470,1746906651157,-400.0,8.492e-05,2]
[360620471,1746906651167,-400.0,8.492e-05,2]
[360620472,1746906651177,-342.37241107,8.492e-05,2]
[360620473,1746906651187,-400.0,8.492e-05,2]
[360620474,1746906651196,-400.0,8.492e-05,2]
[360620475,1746906651206,-400.0,8.492e-05,2]
[360620476,1746906651215,-400.0,8.492e-05,2]
[360620477,1746906651224,-523.62,8.492e-05,2]
[360620478,1746906651235,-400.0,8.492e-05,2]
[360620479,1746906651245,-633.73,8.492e-05,2]
[360620480,1746906651255,-400.0,8.492e-05,2]
[360620481,1746906651264,-460.15,8.492e-05,2]
[360620483,1746906651274,-671.11,8.492e-05,2]
[360620484,1746906651284,-557.78,8.492e-05,2]
[360620486,1746906651293,-903.04,8.492e-05,2]
[360620488,1746906651303,-400.0,8.492e-05,2]
[360620499,1746906651397,-400.0,8.492e-05,2]
[360620502,1746906651408,-400.0,8.492e-05,2]
[360620504,1746906651417,-738.49,8.492e-05,2]
[360620505,1746906651426,-828.14,8.492e-05,2]
[360620507,1746906651436,-2047.93,8.492e-05,2]
[360620509,1746906651446,-400.0,8.492e-05,2]
[360620511,1746906651457,-974.46,8.492e-05,2]
[360620514,1746906651468,-400.0,8.492e-05,2]
[360620516,1746906651477,-863.31,8.492e-05,2]
[360620517,1746906651487,-400.0,8.492e-05,2]
[360620519,1746906651496,-629.14,8.492e-05,2]
[360620521,1746906651506,-484.23,8.492e-05,2]
[360620523,1746906651515,-739.18,8.492e-05,2]
[360620525,1746906651524,-922.29,8.492e-05,2]
[360620527,1746906651533,-2351.73,8.492e-05,2]
[360620529,1746906651545,-2022.22,8.492e-05,2]
[360620531,1746906651555,-1891.95,8.492e-05,2]
[360620533,1746906651565,-970.32,8.492e-05,2]
[360620535,1746906651574,-400.0,8.492e-05,2]
[360620538,1746906651587,-1140.17,8.492e-05,2]
[360620540,1746906651596,-436.7,8.492e-05,2]
[360620541,1746906651606,-400.0,8.492e-05,2]
[360620543,1746906651615,-1347.82,8.492e-05,2]
[360620545,1746906651625,-793.93,8.492e-05,2]
[360620547,1746906651634,-789.56,8.492e-05,2]
[360620549,1746906651644,-400.0,8.492e-05,2]
[360620551,1746906651653,-400.0,8.492e-05,2]
[360620554,1746906651663,-400.0,8.492e-05,2]
[360620555,1746906651672,-1926.65,8.492e-05,2]
[360620557,1746906651682,-400.0,8.492e-05,2]
[360620559,1746906651691,-400.0,8.492e-05,2]
[360620561,1746906651700,-2542.91,8.492e-05,2]
[360620563,1746906651710,-447.46,8.492e-05,2]
[360620566,1746906651720,-705.43,8.492e-05,2]
[360620568,1746906651730,-400.0,8.492e-05,2]
[360620570,1746906651739,-512.02,8.492e-05,2]
[360620571,1746906651748,-661.8,8.492e-05,2]
[360620574,1746906651758,-400.0,8.493e-05,2]
[360620576,1746906651767,-151.40881087,8.493e-05,2]
[360620577,1746906651776,-343.72170772,8.493e-05,2]
[360620580,1746906651786,-400.0,8.493e-05,2]
[360620581,1746906651795,-400.0,8.493e-05,2]
[360620583,1746906651804,-400.0,8.493e-05,2]
[360620585,1746906651814,-824.8,8.493e-05,2]
[360620588,1746906651823,-400.0,8.493e-05,2]
[360620590,1746906651833,-739.55,8.493e-05,2]
[360620592,1746906651842,-400.0,8.493e-05,2]
[360620594,1746906651851,-400.0,8.493e-05,2]
[360620595,1746906651860,-1274.07,8.493e-05,2]
[360620597,1746906651869,-400.0,8.493e-05,2]
[360620599,1746906651878,-954.18,8.493e-05,2]
[360620601,1746906651888,-985.97,8.493e-05,2]
[360620603,1746906651897,-400.0,8.493e-05,2]
[360620605,1746906651907,-425.67220365,8.493e-05,2]
[360620607,1746906651916,-400.0,8.493e-05,2]
[360620609,1746906651925,-400.0,8.493e-05,2]
[360620611,1746906651935,-453.4,8.493e-05,2]
[360620613,1746906651944,-400.0,8.493e-05,2]
[360620615,1746906651953,-341.83134021,8.493e-05,2]
[360620617,1746906651963,-400.0,8.493e-05,2]
[360620620,1746906651974,-400.0,8.493e-05,2]
[360620621,1746906651983,-400.0,8.493e-05,2]
[360620623,1746906651992,-400.0,8.493e-05,2]
[360620625,1746906652001,-400.0,8.493e-05,2]
[360620627,1746906652010,-446.99,8.493e-05,2]
[360620629,1746906652019,-400.0,8.493e-05,2]
[360620631,1746906652028,-400.0,8.493e-05,2]
[360620633,1746906652038,-722.59,8.493e-05,2]
[360620635,1746906652047,-400.0,8.493e-05,2]
[360620637,1746906652057,-400.0,8.493e-05,2]
[360620639,1746906652066,-400.0,8.493e-05,2]
[360620641,1746906652075,-400.0,8.493e-05,2]
[360620643,1746906652084,-400.0,8.493e-05,2]
[360620645,1746906652094,-522.88,8.493e-05,2]
[360620647,1746906652103,-427.35,8.493e-05,2]
[360620649,1746906652113,-562.01,8.493e-05,2]
[360620651,1746906652122,-400.0,8.493e-05,2]
[360620653,1746906652131,-1026.92,8.493e-05,2]
[360620655,1746906652140,-400.0,8.493e-05,2]
[360620657,1746906652150,-400.0,8.493e-05,2]
[360620659,1746906652159,-1419.13,8.493e-05,2]
[360620661,1746906652169,-489.84,8.493e-05,2]
[360620663,1746906652179,-953.05,8.493e-05,2]
[360620665,1746906652188,-400.0,8.493e-05,2]
[360620667,1746906652198,-400.0,8.493e-05,2]
[360620669,1746906652208,-695.87,8.493e-05,2]
[360620671,1746906652218,-400.0,8.493e-05,2]
[360620673,1746906652227,-1151.25,8.493e-05,2]
[360620675,1746906652236,-2025.76,8.493e-05,2]
[360620677,1746906652245,-400.0,8.493e-05,2]
[360620679,1746906652254,-400.0,8.493e-05,2]
[360620681,1746906652264,-400.0,8.493e-05,2]
[360620683,1746906652273,-151.0,8.493e-05,2]
[360620685,1746906652282,-1951.67,8.493e-05,2]
[360620687,1746906652292,-400.0,8.493e-05,2]
[360620689,1746906652302,-781.59,8.493e-05,2]
[360620691,1746906652312,-615.73,8.493e-05,2]
[360620693,1746906652321,-400.0,8.493e-05,2]
[360620695,1746906652331,-400.0,8.493e-05,2]
[360620697,1746906652340,-667.76,8.493e-05,2]
[360620699,1746906652350,-400.0,8.493e-05,2]
[360620701,1746906652361,-400.0,8.493e-05,2]
[360620703,1746906652371,-1882.63,8.493e-05,2]
[360620705,1746906652380,-400.0,8.493e-05,2]
[360620707,1746906652390,-400.0,8.493e-05,2]
[360620709,1746906652399,-400.0,8.493e-05,2]
[360620711,1746906652408,-400.0,8.493e-05,2]
[360620713,1746906652418,-400.0,8.493e-05,2]
[360620715,1746906652429,-494.13,8.493e-05,2]
[360620717,1746906652439,-400.0,8.493e-05,2]
[360620719,1746906652449,-400.0,8.493e-05,2]
[360620721,1746906652459,-400.0,8.493e-05,2]
[360620723,1746906652469,-400.0,8.493e-05,2]
[360620725,1746906652478,-438.08,8.493e-05,2]
[360620727,1746906652487,-665.28,8.493e-05,2]
[360620729,1746906652498,-643.06,8.493e-05,2]
[360620731,1746906652507,-400.0,8.493e-05,2]
[360620733,1746906652517,-1142.12,8.493e-05,2]
[360620735,1746906652528,-400.0,8.493e-05,2]
[360620737,1746906652538,-1235.06,8.493e-05,2]
[360620739,1746906652553,-400.0,8.493e-05,2]
[360620741,1746906652563,-400.0,8.493e-05,2]
[360620743,1746906652572,-4110.99,8.493e-05,2]
[360620745,1746906652582,-400.0,8.493e-05,2]
[360620747,1746906652592,-512.06,8.493e-05,2]
[360620749,1746906652601,-408.04,8.493e-05,2]
[360620751,1746906652611,-400.0,8.493e-05,2]
[360620753,1746906652622,-866.6,8.493e-05,2]
[360620755,1746906652631,-1197.32,8.493e-05,2]
[360620757,1746906652640,-4277.51,8.493e-05,2]
[360620759,1746906652651,-400.0,8.493e-05,2]
[360620761,1746906652660,-400.0,8.493e-05,2]
[360620763,1746906652670,-151.95295036,8.493e-05,2]
[360620765,1746906652679,-852.33,8.493e-05,2]
[360620767,1746906652688,-400.0,8.493e-05,2]
[360620769,1746906652698,-245.29115936,8.493e-05,2]
[360620771,1746906652707,-1309.03,8.493e-05,2]
[360620773,1746906652718,-1077.29,8.493e-05,2]
[360620775,1746906652728,-346.43703436,8.493e-05,2]
[360620778,1746906652738,-7785.86,8.493e-05,2]
[360620780,1746906652748,-400.0,8.493e-05,2]
[360620782,1746906652758,-400.0,8.493e-05,2]
[360620784,1746906652768,-798.74,8.493e-05,2]
[360620786,1746906652778,-400.0,8.493e-05,2]
[360620788,1746906652789,-2347.64,8.493e-05,2]
[360620790,1746906652798,-400.0,8.493e-05,2]
[360620792,1746906652808,-722.49,8.493e-05,2]
[360620794,1746906652819,-400.0,8.493e-05,2]
[360620796,1746906652828,-400.0,8.493e-05,2]
[360620798,1746906652838,-400.0,8.493e-05,2]
[360620800,1746906652848,-400.0,8.493e-05,2]
[360620802,1746906652857,-400.0,8.493e-05,2]
[360620804,1746906652868,-1540.79,8.493e-05,2]
[360620806,1746906652878,-415.52,8.493e-05,2]
[360620808,1746906652888,-1202.77,8.493e-05,2]
[360620810,1746906652898,-8125.42,8.493e-05,2]
[360620813,1746906652909,-455.9,8.493e-05,2]
[360620815,1746906652919,-399.04638266,8.493e-05,2]
[360620817,1746906652929,-728.41,8.493e-05,2]
[360620819,1746906652940,-4052.84,8.493e-05,2]
[360620821,1746906652950,-400.0,8.493e-05,2]
[360620823,1746906652960,-1722.78,8.493e-05,2]
[360620825,1746906652970,-400.0,8.493e-05,2]
[360620827,1746906652980,-961.45,8.493e-05,2]
[360620829,1746906652990,-400.0,8.493e-05,2]
[360620831,1746906653000,-400.0,8.493e-05,2]
[360620833,1746906653011,-513.69,8.493e-05,2]
[360620835,1746906653021,-400.0,8.493e-05,2]
[360620837,1746906653031,-400.0,8.493e-05,2]
[360620839,1746906653042,-161.00829948,8.493e-05,2]
[360620841,1746906653052,-1620.11,8.493e-05,2]
[360620843,1746906653063,-1522.1,8.493e-05,2]
[360620846,1746906653074,-855.77,8.493e-05,2]
[360620848,1746906653084,-3617.99,8.493e-05,2]
[360620850,1746906653094,-400.0,8.493e-05,2]
[360620852,1746906653104,-1039.2,8.493e-05,2]
[360620854,1746906653114,-1521.55,8.493e-05,2]
[360620856,1746906653123,-400.0,8.493e-05,2]
[360620858,1746906653133,-483.77,8.493e-05,2]
[360620860,1746906653143,-913.03,8.493e-05,2]
[360620862,1746906653154,-794.3,8.493e-05,2]
[360620864,1746906653163,-400.0,8.493e-05,2]
[360620866,1746906653173,-720.62,8.493e-05,2]
[360620868,1746906653183,-400.0,8.493e-05,2]
[360620870,1746906653194,-1418.47,8.493e-05,2]
[360620872,1746906653203,-400.0,8.493e-05,2]
[360620874,1746906653213,-400.0,8.493e-05,2]
[360620876,1746906653223,-480.68,8.493e-05,2]
[360620878,1746906653233,-400.0,8.493e-05,2]
[360620880,1746906653242,-400.0,8.493e-05,2]
[360620882,1746906653251,-1863.48,8.493e-05,2]
[360620884,1746906653261,-619.24,8.493e-05,2]
[360620886,1746906653271,-400.0,8.493e-05,2]
[360620888,1746906653281,-400.0,8.493e-05,2]
[360620890,1746906653290,-1742.97,8.493e-05,2]
[360620892,1746906653300,-499.88,8.493e-05,2]
[360620894,1746906653309,-400.0,8.493e-05,2]
[360620896,1746906653319,-1689.1,8.493e-05,2]
[360620898,1746906653329,-1471.66,8.493e-05,2]
[360620900,1746906653339,-400.0,8.493e-05,2]
[360620902,1746906653348,-1375.35,8.493e-05,2]
[360620904,1746906653360,-400.0,8.493e-05,2]
[360620907,1746906653370,-4432.98,8.493e-05,2]
[360620909,1746906653381,-400.0,8.493e-05,2]
[360620911,1746906653390,-719.53,8.493e-05,2]
[360620913,1746906653401,-1921.61,8.493e-05,2]
[360620915,1746906653411,-400.0,8.493e-05,2]
[360620917,1746906653420,-881.79,8.493e-05,2]
[360620919,1746906653430,-893.91,8.493e-05,2]
[360620921,1746906653439,-3693.92,8.493e-05,2]
[360620923,1746906653449,-676.37,8.493e-05,2]
[360620925,1746906653458,-537.87404255,8.493e-05,2]
[360620927,1746906653469,-400.0,8.493e-05,2]
[360620929,1746906653479,-6166.4,8.493e-05,2]
[360620931,1746906653488,-416.85,8.493e-05,2]
[360620933,1746906653498,-1278.01,8.493e-05,2]
[360620934,1746906653508,-400.0,8.493e-05,2]
[360620935,1746906653518,-427.37,8.493e-05,2]
[360620936,1746906653528,-922.84,8.493e-05,2]
[360620937,1746906653538,-400.0,8.493e-05,2]
[360620938,1746906653550,-400.0,8.493e-05,2]
[360620939,1746906653559,-400.0,8.493e-05,2]
[360620940,1746906653568,-445.82,8.493e-05,2]
[360620941,1746906653578,-1409.07,8.493e-05,2]
[360620942,1746906653588,-400.0,8.493e-05,2]
[360620943,1746906653597,-2326.13,8.493e-05,2]
[360620944,1746906653607,-8310.69,8.493e-05,2]
[360620945,1746906653616,-400.0,8.493e-05,2]
[360620947,1746906653627,-400.0,8.493e-05,2]
[360620948,1746906653637,-2015.99,8.493e-05,2]
[360620950,1746906653647,-3912.6,8.493e-05,2]
[360620952,1746906653657,-400.0,8.493e-05,2]
[360620955,1746906653668,-400.0,8.493e-05,2]
[360620957,1746906653680,-400.0,8.493e-05,2]
[360620958,1746906653690,-2641.95,8.493e-05,2]
[360620960,1746906653700,-2579.44,8.493e-05,2]
[360620962,1746906653709,-557.25,8.493e-05,2]
[360620965,1746906653719,-400.0,8.493e-05,2]
[360620967,1746906653729,-2704.17,8.493e-05,2]
[360620969,1746906653742,-400.0,8.493e-05,2]
[360620970,1746906653752,-500.0,8.493e-05,2]
[360620972,1746906653762,-500.0,8.493e-05,2]
[360620975,1746906653772,-28103.55277204,8.515e-05,2]
[360620977,1746906653784,-151.0,8.52e-05,2]
[360620979,1746906653794,-341.44810216,8.521e-05,2]
[360620981,1746906653804,-500.0,8.521e-05,2]
[360620983,1746906653815,-151.0,8.548e-05,2]
[360620985,1746906653824,-500.0,8.548e-05,2]
[360620987,1746906653835,-151.0,8.575e-05,2]
[360620989,1746906653844,-500.0,8.576e-05,2]
[360620991,1746906653854,-1000.000001,8.6e-05,2]
[360620993,1746906653864,-189.37740347,8.603e-05,2]
[360620995,1746906653874,-500.0,8.603e-05,2]
[360620997,1746906653884,-613.79811131,8.612e-05,2]
[360620999,1746906653896,-319.12940868,8.63e-05,2]
[360621001,1746906653905,-400.0,8.766e-05,2]
[360621003,1746906653916,-504.97,8.766e-05,2]
[360621005,1746906653926,-400.0,8.766e-05,2]
[360621007,1746906653936,-640.39,8.766e-05,2]
[360621009,1746906653946,-400.0,8.766e-05,2]
[360621011,1746906653956,-539.65,8.766e-05,2]
[360621013,1746906653966,-400.0,8.766e-05,2]
[360621015,1746906653976,-400.0,8.766e-05,2]
[360621017,1746906653986,-699.78,8.766e-05,2]
[360621019,1746906653996,-400.0,8.766e-05,2]
[360621021,1746906654006,-435.97,8.766e-05,2]
[360621023,1746906654016,-400.0,8.766e-05,2]
[360621025,1746906654026,-400.0,8.766e-05,2]
[360621027,1746906654037,-1746.81,8.766e-05,2]
[360621029,1746906654046,-807.94,8.766e-05,2]
[360621031,1746906654056,-1100.05,8.766e-05,2]
[360621033,1746906654066,-403.69,8.766e-05,2]
[360621035,1746906654076,-692.72,8.766e-05,2]
[360621037,1746906654086,-888.64,8.766e-05,2]
[360621039,1746906654096,-1160.64,8.766e-05,2]
[360621041,1746906654107,-400.0,8.766e-05,2]
[360621043,1746906654117,-400.0,8.766e-05,2]
[360621045,1746906654127,-400.0,8.766e-05,2]
[360621048,1746906654137,-400.0,8.766e-05,2]
[360621050,1746906654147,-400.0,8.766e-05,2]
[360621052,1746906654157,-400.0,8.766e-05,2]
[360621054,1746906654166,-400.0,8.766e-05,2]
[360621056,1746906654176,-523.62,8.766e-05,2]
[360621058,1746906654186,-400.0,8.766e-05,2]
[360621060,1746906654197,-633.73,8.766e-05,2]
[360621062,1746906654207,-400.0,8.766e-05,2]
[360621064,1746906654216,-460.15,8.766e-05,2]
[360621066,1746906654226,-671.11,8.766e-05,2]
[360621068,1746906654236,-557.78,8.766e-05,2]
[360621070,1746906654246,-903.04,8.766e-05,2]
[360621072,1746906654255,-400.0,8.766e-05,2]
[360621074,1746906654265,-400.0,8.766e-05,2]
[360621076,1746906654275,-400.0,8.766e-05,2]
[360621078,1746906654285,-738.49,8.766e-05,2]
[360621080,1746906654295,-828.14,8.766e-05,2]
[360621082,1746906654305,-2047.93,8.766e-05,2]
[360621084,1746906654315,-400.0,8.766e-05,2]
[360621086,1746906654324,-974.46,8.766e-05,2]
[360621088,1746906654334,-400.0,8.766e-05,2]
[360621090,1746906654344,-863.31,8.766e-05,2]
[360621092,1746906654354,-400.0,8.766e-05,2]
[360621094,1746906654364,-629.14,8.766e-05,2]
[360621096,1746906654375,-484.23,8.766e-05,2]
[360621098,1746906654384,-739.18,8.766e-05,2]
[360621100,1746906654394,-922.29,8.766e-05,2]
[360621102,1746906654404,-2351.73,8.766e-05,2]
[360621104,1746906654414,-2022.22,8.766e-05,2]
[360621106,1746906654424,-1891.95,8.766e-05,2]
[360621108,1746906654434,-970.32,8.766e-05,2]
[360621110,1746906654445,-400.0,8.766e-05,2]
[360621112,1746906654455,-1140.17,8.766e-05,2]
[360621114,1746906654465,-436.7,8.766e-05,2]
[360621116,1746906654476,-400.0,8.766e-05,2]
[360621119,1746906654487,-1347.82,8.766e-05,2]
[360621121,1746906654497,-793.93,8.766e-05,2]
[360621123,1746906654507,-789.56,8.766e-05,2]
[360621125,1746906654517,-400.0,8.766e-05,2]
[360621127,1746906654527,-212.5732768,8.766e-05,2]
[360621129,1746906654537,-400.0,8.766e-05,2]
[360621131,1746906654550,-1926.65,8.766e-05,2]
[360621133,1746906654561,-400.0,8.766e-05,2]
[360621135,1746906654571,-434.28802869,8.766e-05,2]
[360621137,1746906654582,-2542.91,8.766e-05,2]
[360621139,1746906654592,-447.46,8.766e-05,2]
[360621141,1746906654603,-705.43,8.766e-05,2]
[360621143,1746906654612,-486.42416136,8.766e-05,2]
[360621146,1746906654625,-512.02,8.766e-05,2]
[360621148,1746906654637,-661.8,8.766e-05,2]
[360621150,1746906654647,-326.40985125,8.767e-05,2]
[360621152,1746906654657,-400.0,8.767e-05,2]
[360621154,1746906654667,-457.42,8.767e-05,2]
[360621156,1746906654676,-525.79,8.767e-05,2]
[360621158,1746906654687,-400.0,8.767e-05,2]
[360621160,1746906654697,-400.0,8.767e-05,2]
[360621162,1746906654706,-400.0,8.767e-05,2]
[360621164,1746906654716,-273.58557776,8.767e-05,2]
[360621166,1746906654726,-434.68,8.767e-05,2]
[360621168,1746906654736,-400.0,8.767e-05,2]
[360621170,1746906654746,-400.0,8.767e-05,2]
[360621172,1746906654756,-400.0,8.767e-05,2]
[360621174,1746906654765,-400.0,8.767e-05,2]
[360621176,1746906654775,-478.83,8.767e-05,2]
[360621178,1746906654785,-832.17,8.767e-05,2]
[360621180,1746906654796,-400.0,8.767e-05,2]
[360621182,1746906654806,-400.0,8.767e-05,2]
[360621184,1746906654816,-400.0,8.767e-05,2]
[360621187,1746906654826,-400.0,8.767e-05,2]
[360621189,1746906654836,-400.0,8.767e-05,2]
[360621206,1746906654977,-824.8,8.767e-05,2]
[360621208,1746906655005,-400.0,8.767e-05,2]
[360621210,1746906655014,-739.55,8.767e-05,2]
[360621212,1746906655024,-400.0,8.767e-05,2]
[360621214,1746906655034,-400.0,8.767e-05,2]
[360621216,1746906655043,-1274.07,8.767e-05,2]
[360621218,1746906655052,-400.0,8.767e-05,2]
[360621220,1746906655062,-954.18,8.767e-05,2]
[360621222,1746906655071,-985.97,8.767e-05,2]
[360621224,1746906655080,-400.0,8.767e-05,2]
[360621226,1746906655090,-400.0,8.767e-05,2]
[360621228,1746906655099,-400.0,8.767e-05,2]
[360621230,1746906655108,-453.4,8.767e-05,2]
[360621232,1746906655119,-400.0,8.767e-05,2]
[360621234,1746906655129,-400.0,8.767e-05,2]
[360621236,1746906655138,-400.0,8.767e-05,2]
[360621239,1746906655148,-400.0,8.767e-05,2]
[360621241,1746906655158,-254.90333002,8.767e-05,2]
[360621242,1746906655167,-400.0,8.767e-05,2]
[360621244,1746906655176,-446.99,8.767e-05,2]
[360621246,1746906655186,-400.0,8.767e-05,2]
[360621248,1746906655195,-400.0,8.767e-05,2]
[360621250,1746906655204,-722.59,8.767e-05,2]
[360621252,1746906655214,-400.0,8.767e-05,2]
[360621254,1746906655224,-400.0,8.767e-05,2]
[360621256,1746906655234,-400.0,8.767e-05,2]
[360621258,1746906655243,-400.0,8.767e-05,2]
[360621261,1746906655253,-400.0,8.767e-05,2]
[360621263,1746906655263,-522.88,8.767e-05,2]
[360621265,1746906655273,-427.35,8.767e-05,2]
[360621266,1746906655282,-562.01,8.767e-05,2]
[360621269,1746906655292,-400.0,8.767e-05,2]
[360621271,1746906655301,-1026.92,8.767e-05,2]
[360621272,1746906655310,-400.0,8.767e-05,2]
[360621274,1746906655319,-400.0,8.767e-05,2]
[360621276,1746906655329,-1419.13,8.767e-05,2]
[360621279,1746906655338,-489.84,8.767e-05,2]
[360621280,1746906655348,-953.05,8.767e-05,2]
[360621283,1746906655357,-400.0,8.767e-05,2]
[360621285,1746906655366,-400.0,8.767e-05,2]
[360621286,1746906655375,-695.87,8.767e-05,2]
[360621288,1746906655385,-400.0,8.767e-05,2]
[360621290,1746906655394,-1151.25,8.767e-05,2]
[360621292,1746906655403,-2025.76,8.767e-05,2]
[360621294,1746906655413,-400.0,8.767e-05,2]
[360621296,1746906655423,-400.0,8.767e-05,2]
[360621299,1746906655433,-400.0,8.767e-05,2]
[360621301,1746906655442,-1951.67,8.767e-05,2]
[360621303,1746906655452,-400.0,8.767e-05,2]
[360621305,1746906655461,-781.59,8.767e-05,2]
[360621307,1746906655471,-615.73,8.767e-05,2]
[360621309,1746906655480,-400.0,8.767e-05,2]
[360621311,1746906655490,-400.0,8.767e-05,2]
[360621313,1746906655499,-667.76,8.767e-05,2]
[360621315,1746906655508,-400.0,8.767e-05,2]
[360621317,1746906655518,-400.0,8.767e-05,2]
[360621319,1746906655527,-1882.63,8.767e-05,2]
[360621321,1746906655536,-400.0,8.767e-05,2]
[360621323,1746906655548,-400.0,8.767e-05,2]
[360621325,1746906655558,-400.0,8.767e-05,2]
[360621327,1746906655567,-400.0,8.767e-05,2]
[360621329,1746906655576,-400.0,8.767e-05,2]
[360621331,1746906655587,-494.13,8.767e-05,2]
[360621333,1746906655596,-400.0,8.767e-05,2]
[360621335,1746906655605,-208.44505623,8.767e-05,2]
[360621337,1746906655615,-400.0,8.767e-05,2]
[360621339,1746906655625,-400.0,8.767e-05,2]
[360621341,1746906655635,-438.08,8.767e-05,2]
[360621343,1746906655645,-665.28,8.767e-05,2]
[360621345,1746906655654,-643.06,8.767e-05,2]
[360621347,1746906655663,-400.0,8.767e-05,2]
[360621349,1746906655672,-1142.12,8.767e-05,2]
[360621351,1746906655682,-400.0,8.767e-05,2]
[360621353,1746906655693,-1235.06,8.767e-05,2]
[360621354,1746906655702,-400.0,8.767e-05,2]
[360621355,1746906655711,-400.0,8.767e-05,2]
[360621356,1746906655722,-400.0,8.767e-05,2]
[360621357,1746906655731,-4110.99,8.767e-05,2]
[360621358,1746906655741,-512.06,8.767e-05,2]
[360621359,1746906655750,-408.04,8.767e-05,2]
[360621360,1746906655760,-400.0,8.767e-05,2]
[360621361,1746906655769,-866.6,8.767e-05,2]
[360621362,1746906655778,-1197.32,8.767e-05,2]
[360621363,1746906655788,-4277.51,8.767e-05,2]
[360621364,1746906655797,-400.0,8.767e-05,2]
[360621365,1746906655806,-400.0,8.767e-05,2]
[360621366,1746906655815,-852.33,8.767e-05,2]
[360621368,1746906655824,-400.0,8.767e-05,2]
[360621370,1746906655833,-1309.03,8.767e-05,2]
[360621372,1746906655842,-1077.29,8.767e-05,2]
[360621374,1746906655851,-7785.86,8.767e-05,2]
[360621376,1746906655860,-371.91409571,8.767e-05,2]
[360621378,1746906655870,-400.0,8.767e-05,2]
[360621380,1746906655880,-798.74,8.767e-05,2]
[360621382,1746906655890,-400.0,8.767e-05,2]
[360621384,1746906655899,-2347.64,8.767e-05,2]
[360621386,1746906655908,-356.96149851,8.767e-05,2]
[360621388,1746906655918,-722.49,8.767e-05,2]
[360621390,1746906655928,-400.0,8.767e-05,2]
[360621392,1746906655937,-400.0,8.767e-05,2]
[360621394,1746906655947,-400.0,8.767e-05,2]
[360621396,1746906655957,-400.0,8.767e-05,2]
[360621398,1746906655967,-400.0,8.767e-05,2]
[360621401,1746906655977,-1540.79,8.767e-05,2]
[360621402,1746906655987,-415.52,8.767e-05,2]
[360621403,1746906655996,-1202.77,8.767e-05,2]
[360621405,1746906656006,-8125.42,8.767e-05,2]
[360621407,1746906656016,-455.9,8.767e-05,2]
[360621409,1746906656026,-728.41,8.767e-05,2]
[360621411,1746906656036,-4052.84,8.767e-05,2]
[360621413,1746906656046,-1722.78,8.767e-05,2]
[360621416,1746906656055,-400.0,8.767e-05,2]
[360621418,1746906656065,-400.0,8.767e-05,2]
[360621420,1746906656075,-961.45,8.767e-05,2]
[360621422,1746906656084,-400.0,8.767e-05,2]
[360621424,1746906656093,-400.0,8.767e-05,2]
[360621425,1746906656102,-513.69,8.767e-05,2]
[360621427,1746906656112,-400.0,8.767e-05,2]
[360621429,1746906656121,-400.0,8.767e-05,2]
[360621431,1746906656130,-1620.11,8.767e-05,2]
[360621433,1746906656140,-1522.1,8.767e-05,2]
[360621435,1746906656149,-855.77,8.767e-05,2]
[360621437,1746906656158,-3617.99,8.767e-05,2]
[360621439,1746906656167,-400.0,8.767e-05,2]
[360621441,1746906656177,-1039.2,8.767e-05,2]
[360621444,1746906656186,-1521.55,8.767e-05,2]
[360621446,1746906656196,-400.0,8.767e-05,2]
[360621447,1746906656204,-483.77,8.767e-05,2]
[360621449,1746906656214,-913.03,8.767e-05,2]
[360621451,1746906656224,-794.3,8.767e-05,2]
[360621453,1746906656233,-400.0,8.767e-05,2]
[360621455,1746906656242,-720.62,8.767e-05,2]
[360621457,1746906656251,-400.0,8.767e-05,2]
[360621459,1746906656260,-1418.47,8.767e-05,2]
[360621461,1746906656270,-400.0,8.767e-05,2]